fUSD/lending_fUSD_20240821
["ID","MTS","AMOUNT","RATE_DAILY","PERIOD"]
[335422681,1724219438128,-500.0,0.00016899,5]
[335422682,1724219438137,-500.0,0.00016899,5]
[335422683,1724219438147,-1353.31,0.00016899,5]
[335422684,1724219438156,-1629.6,0.00016899,5]
[335422685,1724219438165,-757.24,0.00016899,5]
[335422686,1724219438174,-500.0,0.00016899,5]
[335422687,1724219438183,-2027.62,0.00016899,5]
[335422688,1724219438192,-500.0,0.00016899,5]
[335422689,1724219438201,-852.51,0.00016899,5]
[335422690,1724219438211,-896.19,0.00016899,5]
[335422691,1724219438220,-1016.6,0.00016899,5]
[335422703,1724219438466,-1084.84,0.00016899,5]
[335422706,1724219438483,-305.07,0.00016899,5]
[335422708,1724219438493,-500.0,0.00016899,5]
[335422710,1724219438502,-500.0,0.00016899,5]
[335422712,1724219438512,-8835.24674774,0.000169,2]
[335422714,1724219438522,-53098.73141568,0.000169,2]
[335422716,1724219438534,-372.94911677,0.000169,2]
[335422718,1724219438546,-3547.97188898,0.000169,2]
[335422904,1724219440171,-297.89887545,0.00010849,2]
[335422906,1724219440181,-144514.13795857,0.000169,2]
[335422908,1724219440190,-12140.00588816,0.000169,2]
[335422910,1724219440199,-197.92275608,0.000169,2]
[335422911,1724219440208,-223.81316148,0.000169,2]
[335422912,1724219440218,-3386.56928892,0.00016913,2]
[335422913,1724219440228,-420.6341917,0.00016919,2]
[335422914,1724219440238,-1353.31,0.00016988,5]
[335422916,1724219440248,-1629.6,0.00016988,5]
[335422918,1724219440258,-757.24,0.00016988,5]
[335422920,1724219440267,-2027.62,0.00016988,5]
[335422922,1724219440276,-500.0,0.00016988,5]
[335422924,1724219440286,-852.51,0.00016988,5]
[335422926,1724219440296,-896.19,0.00016988,5]
[335422928,1724219440305,-1016.6,0.00016988,5]
[335422930,1724219440315,-1084.84,0.00016988,5]
[335422932,1724219440325,-500.0,0.00016988,5]
[335422934,1724219440334,-500.0,0.00016988,5]
[335422936,1724219440344,-500.0,0.00016989,5]
[335422939,1724219440355,-500.0,0.00016989,5]
[335422941,1724219440365,-500.0,0.00016989,5]
[335422943,1724219440375,-500.0,0.00016989,5]
[335422945,1724219440384,-500.0,0.00016989,5]
[335422947,1724219440393,-515.43416078,0.00016989,5]
[335422949,1724219440402,-1353.31,0.00016989,5]
[335422951,1724219440411,-1353.31,0.00016989,5]
[335422952,1724219440420,-1353.31,0.00016989,5]
[335422955,1724219440430,-1629.6,0.00016989,5]
[335422957,1724219440440,-1629.6,0.00016989,5]
[335422958,1724219440449,-1629.6,0.00016989,5]
[335422960,1724219440459,-757.24,0.00016989,5]
[335422963,1724219440470,-757.24,0.00016989,5]
[335422964,1724219440481,-757.24,0.00016989,5]
[335422966,1724219440491,-500.0,0.00016989,5]
[335422969,1724219440500,-500.0,0.00016989,5]
[335422971,1724219440510,-500.0,0.00016989,5]
[335422973,1724219440519,-2027.62,0.00016989,5]
[335422975,1724219440529,-2027.62,0.00016989,5]
[335422977,1724219440538,-2027.62,0.00016989,5]
[335422979,1724219440547,-852.51,0.00016989,5]
[335422981,1724219440557,-852.51,0.00016989,5]
[335422983,1724219440569,-852.51,0.00016989,5]
[335422985,1724219440579,-896.19,0.00016989,5]
[335422987,1724219440588,-896.19,0.00016989,5]
[335422988,1724219440598,-896.19,0.00016989,5]
[335422990,1724219440609,-1016.6,0.00016989,5]
[335422992,1724219440618,-1016.6,0.00016989,5]
[335422994,1724219440629,-339.81937918,0.00016989,5]
[335422997,1724219440641,-676.78062082,0.00016989,5]
[335422998,1724219440650,-381.28784677,0.00016989,5]
[335423001,1724219440665,-703.55215323,0.00016989,5]
[335423003,1724219440674,-36.32048803,0.00016989,5]
[335423234,1724219443016,-250.0,0.00016482,2]
[335423237,1724219443026,-763.51800348,0.00016957,2]
[335423239,1724219443036,-896.98530091,0.00016989,5]
[335423292,1724219445898,-151.53421106,0.00016989,5]
[335423293,1724219445908,-824.96578894,0.00016989,5]
[335423295,1724219645858,155.0,0.000179,120]
[335423300,1724219852224,500.0,9.017e-05,2]
[335423301,1724219891167,1311.43352193,9.017e-05,2]
[335423302,1724219977179,1004.37349387,9.017e-05,2]
[335423320,1724220435532,500.0,8.134e-05,2]
[335423321,1724220436351,500.0,9.673e-05,2]
[335423333,1724220450003,330.08670893,8.719e-05,2]
[335423337,1724220462347,1335.98293567,0.000179,120]
[335423372,1724220632186,-472.13458006,9.961e-05,2]
[335423373,1724220632198,-27.86541994,9.961e-05,2]
[335423374,1724220632208,-1050.0,0.0001,2]
[335423375,1724220632217,-500.0,0.0001,2]
[335423376,1724220632227,-534.96907674,0.0001,2]
[335423377,1724220632236,-653.58446608,0.00010097,2]
[335423378,1724220632245,-895.19865544,0.00010471,2]
[335423379,1724220632255,-225.61436308,0.00010566,2]
[335423380,1724220632264,-300.0,0.00010898,2]
[335423381,1724220632273,-1380.58320304,0.00010899,2]
[335423410,1724220638109,-762.91679696,0.00010899,2]
[335423411,1724220638119,-3583.66440572,0.00011336,2]
[335423412,1724220638132,-2144.51516389,0.00012613,2]
[335423413,1724220638141,-1276.21844793,0.00012613,2]
[335423414,1724220638150,-164.7411861,0.00013001,2]
[335423415,1724220638159,-1138.22789575,0.00013001,2]
[335423416,1724220638168,-432.5166998,0.00013001,2]
[335423417,1724220638178,-380.35876131,0.00013001,2]
[335423418,1724220638187,-179.86122976,0.00013001,2]
[335423419,1724220638197,-218.92791442,0.00013001,2]
[335423420,1724220638207,-155.0,0.00013042,2]
[335423421,1724220638217,-255.55085347,0.00013042,2]
[335423422,1724220638227,-600.79792946,0.00013042,2]
[335423423,1724220638237,-203.42899612,0.00013042,2]
[335423424,1724220638247,-535.234653,0.00013042,2]
[335423425,1724220638256,-417.62580923,0.00013042,2]
[335423426,1724220638265,-357.4813523,0.00013042,2]
[335423427,1724220638276,-485.22914892,0.00013042,2]
[335423428,1724220638287,-211.08016593,0.00013052,2]
[335423429,1724220638297,-155.0,0.00013052,2]
[335423430,1724220638308,-255.21992957,0.00013052,2]
[335423431,1724220638318,-159.62357463,0.00013052,2]
[335423432,1724220638328,-330.25656643,0.00013052,2]
[335423433,1724220638338,-236.36319912,0.00013052,2]
[335423434,1724220638347,-367.98538424,0.00013052,2]
[335423435,1724220638357,-687.47768044,0.00013086,2]
[335423436,1724220638367,-150.0,0.00013291,2]
[335423437,1724220638376,-155.0,0.00013292,2]
[335423438,1724220638385,-236.99180348,0.00013292,2]
[335423439,1724220638394,-500.0,0.00013385,2]
[335423440,1724220638404,-155.0,0.00013391,2]
[335423441,1724220638414,-155.0,0.00013391,2]
[335423442,1724220638423,-308.19492116,0.00013414,2]
[335423443,1724220638448,-191.80507884,0.00013414,2]
[335423444,1724220638457,-250.0,0.0001358,2]
[335423445,1724220638466,-159.70678552,0.00013645,2]
[335423446,1724220638478,-40.29321448,0.00013645,2]
[335423447,1724220638487,-155.0,0.00013688,2]
[335423448,1724220638496,-546.554705,0.00013698,2]
[335423450,1724220638506,-522.96750718,0.00013698,2]
[335423452,1724220638515,-675.17658669,0.00013851,2]
[335423453,1724220638526,-392.67304101,0.00013851,2]
[335423611,1724220640227,-2996.07465053,0.00013851,2]
[335423612,1724220640236,-699.14,0.00014175,2]
[335423613,1724220640245,-184.95,0.00014202,2]
[335423614,1724220640254,-5216.47908061,0.00014311,2]
[335423616,1724220640265,-8947.21879473,0.00014311,2]
[335423618,1724220640276,-2291.14212466,0.00014311,2]
[335423620,1724220640285,-650.04785045,0.00014782,2]
[335423622,1724220640294,-319.57,0.00014825,2]
[335423624,1724220640303,-1170.0,0.00015,2]
[335423626,1724220640312,-614.93,0.00015,2]
[335423628,1724220640322,-223.14,0.00015682,2]
[335423630,1724220640332,-167.0,0.00015831,2]
[335423632,1724220640341,-1000.0,0.00015872,2]
[335423634,1724220640351,-300.0,0.000159,5]
[335423636,1724220640363,-2162.40715481,0.00016,2]
[335423638,1724220640372,-45.5467347,0.00016267,2]
[335423640,1724220640383,-634.8832653,0.00016267,2]
[335423642,1724220640393,-572.63850261,0.00016389,2]
[335423645,1724220640403,-2774.20903259,0.00016398,2]
[335423647,1724220640412,-5095.81786102,0.000164,2]
[335423649,1724220640424,-2404.18213898,0.000164,2]
[335423651,1724220640434,-223.81316148,0.000164,2]
[335423653,1724220640443,-205.89445862,0.000164,2]
[335423655,1724220640454,-6109.95047581,0.000164,2]
[335423657,1724220640465,-1983.38678297,0.000164,2]
[335423659,1724220640475,-996.92936278,0.00016478,3]
[335423664,1724220640514,-285.12435591,0.00016478,3]
[335423671,1724220640574,-494.82037497,0.00016478,3]
[335423674,1724220640586,-260.54499999,0.00016478,3]
[335423676,1724220640599,-3569.57250634,0.00016478,3]
[335423678,1724220640608,-500.0,0.0001648,2]
[335423680,1724220640618,-10775.99118488,0.0001648,3]
[335423682,1724220640629,-2422.93774298,0.0001648,3]
[335424011,1724220644023,-484.02,0.00012152,2]
[335424013,1724220644032,-484.02,0.00014416,2]
[335424015,1724220644041,-9331.12535924,0.0001648,3]
[335424233,1724220646138,-155.0,0.00013086,2]
[335424235,1724220646147,-6904.23852884,0.0001648,3]
[335424241,1724220646199,-96900.8517892,0.0001648,3]
[335424249,1724220646264,-9228.9545958,0.0001648,3]
[335424257,1724220646322,-422.91126348,0.0001648,3]
[335424264,1724220646384,-7416.2350021,0.0001648,3]
[335424900,1724221035677,500.0,7.967e-05,2]
[335424903,1724221222485,1166.87435104,9.657e-05,2]
[335424904,1724221268797,-356.64605116,0.00010899,2]
[335424905,1724221268819,-150.43,0.00010959,2]
[335424906,1724221268844,-155.0,0.00010993,2]
[335424907,1724221322132,300.1872949,0.00010993,2]
[335424908,1724221347953,500.0,7.529e-05,2]
[335424973,1724221678195,712.21375949,0.0001,2]
[335424979,1724221705989,459.36552478,9.126e-05,2]
[335425031,1724221766159,760.79063016,9.126e-05,2]
[335425052,1724221832446,-549.98456059,0.00011062,2]
[335425053,1724221832456,-501.69857395,0.00011294,2]
[335425054,1724221832465,-713.29210228,0.00012026,2]
[335425055,1724221832475,-1725.0,0.00012089,2]
[335425056,1724221832484,-486.21,0.00012727,2]
[335425057,1724221832494,-936.75169288,0.00013001,2]
[335425058,1724221832505,-270.58164358,0.00013001,2]
[335425059,1724221832520,-155.0,0.00013042,2]
[335425060,1724221832529,-628.20735706,0.00013052,2]
[335425062,1724221832538,-300.1872949,0.00013325,2]
[335425064,1724221832548,-291.17202967,0.00013391,2]
[335425066,1724221832559,-155.0,0.00013698,2]
[335425068,1724221832568,-415.17522534,0.0001387,2]
[335425069,1724221832577,-300.0,0.00013879,2]
[335425071,1724221832586,-6476.52830222,0.0001388,2]
[335425073,1724221832596,-178.51,0.0001456,2]
[335425075,1724221832605,-4438.67,0.00014574,2]
[335425077,1724221832615,-8598.88,0.00014597,2]
[335425079,1724221832624,-1000.0,0.00014668,2]
[335425080,1724221832634,-250.0,0.00014696,2]
[335425081,1724221832643,-617.67,0.00014704,2]
[335425082,1724221832652,-200.0,0.00014755,2]
[335425083,1724221832662,-150.0,0.00014844,2]
[335425084,1724221832671,-164.72,0.00014868,2]
[335425085,1724221832680,-486.21,0.00014991,2]
[335425086,1724221832689,-4474.0,0.00015,2]
[335425087,1724221832699,-278.72521426,0.00015097,2]
[335425088,1724221832710,-721.27478574,0.00015097,2]
[335425089,1724221832720,-633.01,0.000151,2]
[335425090,1724221832729,-150.0,0.000151,2]
[335425091,1724221832738,-971.49047591,0.0001523,2]
[335425092,1724221832747,-170.93,0.00015272,2]
[335425093,1724221832758,-300.0,0.000155,5]
[335425094,1724221832768,-600.0,0.000156,5]
[335425095,1724221832776,-204.05,0.00015621,2]
[335425096,1724221832785,-676.08774224,0.000157,5]
[335425100,1724221838272,-223.91225776,0.000157,5]
[335425101,1724221838282,-435.58774225,0.000158,5]
[335425102,1724221838294,-764.41225775,0.000158,5]
[335425103,1724221838304,-167.0,0.00015831,2]
[335425104,1724221838313,-175.24,0.00015831,2]
[335425105,1724221838323,-150.0,0.00015878,2]
[335425106,1724221838332,-1600.0,0.000159,5]
[335425107,1724221838342,-1000.0,0.000161,2]
[335425108,1724221838351,-500.41096362,0.00016256,2]
[335425109,1724221838525,-1467.531,0.0001632,2]
[335425110,1724221838535,-4426.843,0.00016379,2]
[335425111,1724221838545,-178.51,0.0001638,2]
[335425112,1724221838554,-501.05868981,0.0001638,2]
[335425113,1724221838564,-215.56710439,0.00016389,2]
[335425114,1724221838573,-40971.50353808,0.00016389,2]
[335425116,1724221838592,-23927.19396192,0.00016389,2]
[335425117,1724221838602,-261.115,0.00016389,2]
[335425119,1724221838611,-200.36223522,0.00016399,2]
[335425121,1724221838621,-211.55324508,0.00016399,2]
[335425123,1724221838630,-152.79080492,0.000164,2]
[335425125,1724221838640,-152.31,0.00016473,2]
[335425127,1724221838649,-152.31,0.00016478,2]
[335425130,1724221838659,-6423.44,0.00016478,5]
[335425132,1724221838668,-2246.64,0.00016478,5]
[335425134,1724221838677,-6503.45,0.00016478,5]
[335425136,1724221838687,-1000.0,0.00016478,2]
[335425138,1724221838697,-1000.0,0.00016478,2]
[335425140,1724221838706,-1561.68,0.00016478,5]
[335425142,1724221838716,-1000.0,0.00016478,2]
[335425144,1724221838726,-1000.0,0.00016478,2]
[335425146,1724221838735,-1000.0,0.00016478,2]
[335425148,1724221838745,-3125.69,0.00016478,5]
[335425150,1724221838755,-1000.0,0.00016478,2]
[335425152,1724221838764,-1000.0,0.00016478,2]
[335425154,1724221838773,-1000.0,0.00016478,2]
[335425156,1724221838783,-500.0,0.00016478,5]
[335425157,1724221838792,-1033.63,0.00016478,5]
[335425159,1724221838802,-1000.0,0.00016478,2]
[335425161,1724221838811,-1000.0,0.00016478,2]
[335425163,1724221838820,-1347.23,0.00016478,5]
[335425165,1724221838829,-500.0,0.00016478,5]
[335425167,1724221838838,-1779.64,0.00016478,5]
[335425169,1724221838848,-1442.4,0.00016478,5]
[335425170,1724221838858,-840.87,0.00016478,5]
[335425172,1724221838868,-500.0,0.00016478,5]
[335425174,1724221838877,-713.76,0.00016478,5]
[335425176,1724221838886,-1186.56,0.00016478,5]
[335425178,1724221838895,-500.0,0.00016478,5]
[335425180,1724221838905,-500.0,0.00016478,5]
[335425182,1724221838915,-835.96,0.00016478,5]
[335425184,1724221838924,-500.0,0.00016478,5]
[335425186,1724221838934,-1064.01,0.00016478,5]
[335425188,1724221838944,-1301.52,0.00016478,5]
[335425190,1724221838953,-500.0,0.00016478,5]
[335425192,1724221838963,-500.0,0.00016478,5]
[335425194,1724221838973,-711.0,0.00016478,5]
[335425196,1724221838984,-1638.12,0.00016478,5]
[335425198,1724221838993,-2912.65,0.00016478,5]
[335425200,1724221839003,-1097.05,0.00016478,5]
[335425202,1724221839013,-1155.55,0.00016478,5]
[335425204,1724221839022,-500.0,0.00016478,5]
[335425206,1724221839031,-1142.86,0.00016478,5]
[335425208,1724221839041,-503.87197613,0.00016478,5]
[335425210,1724221839051,-1273.13,0.00016478,5]
[335425212,1724221839060,-1533.86,0.00016478,5]
[335425214,1724221839070,-500.0,0.00016478,5]
[335425216,1724221839079,-2008.56,0.00016478,5]
[335425218,1724221839089,-500.0,0.00016478,5]
[335425220,1724221839099,-915.82,0.00016478,5]
[335425222,1724221839109,-780.24,0.00016478,5]
[335425225,1724221839119,-967.56,0.00016478,5]
[335425227,1724221839128,-151.0,0.00016479,2]
[335425229,1724221839138,-2952.613592,0.00016479,2]
[335425230,1724221839148,-2952.613592,0.00016479,2]
[335425232,1724221839157,-238.471029,0.00016479,2]
[335425234,1724221839166,-2268.589239,0.00016479,2]
[335425236,1724221839175,-238.471029,0.00016479,2]
[335425238,1724221839185,-2268.589239,0.00016479,2]
[335425240,1724221839194,-151.0,0.00016479,2]
[335425242,1724221839203,-10000.0,0.00016479,2]
[335425244,1724221839212,-10000.0,0.00016479,2]
[335425246,1724221839221,-10000.0,0.00016479,2]
[335425247,1724221839230,-10000.0,0.00016479,2]
[335425249,1724221839240,-151.0,0.0001648,2]
[335425251,1724221839254,-755.46190064,0.0001648,5]
[335425255,1724221839278,-1844.94809936,0.0001648,5]
[335425257,1724221839289,-151.0,0.0001648,2]
[335425259,1724221839298,-1478.18,0.0001648,5]
[335425261,1724221839307,-151.0,0.0001648,2]
[335425263,1724221839317,-151.0,0.0001648,2]
[335425265,1724221839328,-520.501741,0.0001648,2]
[335425267,1724221839338,-151.0,0.0001648,2]
[335425268,1724221839347,-520.501741,0.0001648,2]
[335425271,1724221839357,-709.93,0.0001648,5]
[335425272,1724221839366,-261.07152,0.0001648,2]
[335425274,1724221839375,-151.0,0.0001648,2]
[335425276,1724221839385,-24174.05,0.0001648,5]
[335425278,1724221839394,-261.07152,0.0001648,2]
[335425280,1724221839403,-2577.29,0.0001648,5]
[335425282,1724221839413,-151.0,0.0001648,2]
[335425283,1724221839423,-2139.595495,0.0001648,2]
[335425285,1724221839433,-2139.595495,0.0001648,2]
[335425288,1724221839443,-1937.74,0.0001648,5]
[335425290,1724221839452,-625.54,0.0001648,5]
[335425291,1724221839462,-3000.0,0.0001648,2]
[335425293,1724221839472,-151.0,0.0001648,2]
[335425296,1724221839482,-151.0,0.0001648,2]
[335425297,1724221839492,-363.668635,0.0001648,2]
[335425299,1724221839502,-2031.32,0.0001648,5]
[335425301,1724221839511,-363.668635,0.0001648,2]
[335425303,1724221839521,-216.62974,0.0001648,5]
[335425305,1724221839531,-539.899884,0.0001648,5]
[335425307,1724221839540,-500.0,0.0001648,5]
[335425309,1724221839550,-500.0,0.0001648,5]
[335425311,1724221839560,-151.0,0.0001648,2]
[335425313,1724221839570,-151.0,0.0001648,2]
[335425315,1724221839579,-152.038307,0.0001648,2]
[335425317,1724221839589,-2952.613592,0.0001648,2]
[335425319,1724221839598,-2952.613592,0.0001648,2]
[335425321,1724221839608,-2952.613592,0.0001648,2]
[335425323,1724221839618,-2952.613592,0.0001648,2]
[335425324,1724221839627,-2952.613592,0.0001648,2]
[335425325,1724221839637,-2952.613592,0.0001648,2]
[335425326,1724221839646,-500.0,0.0001648,5]
[335425327,1724221839655,-238.471029,0.0001648,2]
[335425328,1724221839664,-238.471029,0.0001648,2]
[335425329,1724221839673,-238.471029,0.0001648,2]
[335425330,1724221839683,-2268.589239,0.0001648,2]
[335425331,1724221839692,-2268.589239,0.0001648,2]
[335425332,1724221839701,-238.471029,0.0001648,2]
[335425333,1724221839711,-238.471029,0.0001648,2]
[335425334,1724221839720,-2268.589239,0.0001648,2]
[335425336,1724221839729,-238.471029,0.0001648,2]
[335425337,1724221839738,-2268.589239,0.0001648,2]
[335425339,1724221839748,-2268.589239,0.0001648,2]
[335425341,1724221839761,-2268.589239,0.0001648,2]
[335425343,1724221839770,-217.636024,0.0001648,5]
[335425345,1724221839780,-151.0,0.0001648,2]
[335425347,1724221839789,-151.0,0.0001648,2]
[335425349,1724221839798,-250.724216,0.0001648,2]
[335425351,1724221839808,-10000.0,0.0001648,2]
[335425353,1724221839818,-10000.0,0.0001648,2]
[335425355,1724221839827,-10000.0,0.0001648,2]
[335425357,1724221839837,-164.196944,0.0001648,5]
[335425359,1724221839847,-10000.0,0.0001648,2]
[335425361,1724221839857,-10000.0,0.0001648,2]
[335425363,1724221839867,-10000.0,0.0001648,2]
[335425365,1724221839876,-10000.0,0.0001648,2]
[335425367,1724221839886,-10000.0,0.0001648,2]
[335425368,1724221839896,-10000.0,0.0001648,2]
[335425369,1724221839906,-10000.0,0.0001648,2]
[335425370,1724221839915,-3212.097538,0.0001648,2]
[335425371,1724221839924,-500.0,0.0001648,5]
[335425372,1724221839933,-500.0,0.0001648,5]
[335425373,1724221839943,-500.0,0.0001648,5]
[335425374,1724221839952,-500.0,0.0001648,5]
[335425375,1724221839962,-938.87,0.0001648,5]
[335425376,1724221839971,-500.0,0.0001648,5]
[335425377,1724221839980,-500.0,0.0001648,5]
[335425378,1724221839990,-151.0,0.0001648,2]
[335425379,1724221840000,-151.461743,0.0001648,2]
[335425380,1724221840012,-500.0,0.0001648,5]
[335425381,1724221840022,-500.0,0.00016482,5]
[335425382,1724221840031,-500.0,0.00016482,5]
[335425383,1724221840041,-560.74433513,0.00016482,2]
[335425384,1724221840051,-500.0,0.00016482,5]
[335425385,1724221840060,-577.89370777,0.00016482,5]
[335425386,1724221840070,-500.0,0.00016482,2]
[335425387,1724221840079,-500.0,0.00016482,5]
[335425388,1724221840089,-646.06,0.00016482,5]
[335425389,1724221840099,-573.00377791,0.00016482,5]
[335425390,1724221840112,-568.79339912,0.00016482,5]
[335425391,1724221840121,-511.52710703,0.00016482,5]
[335425392,1724221840131,-516.0513275,0.00016482,5]
[335425393,1724221840140,-530.62148967,0.00016482,5]
[335425394,1724221840150,-151.0,0.00016483,2]
[335425395,1724221840159,-151.0,0.00016483,2]
[335425396,1724221840169,-151.0,0.00016483,2]
[335425397,1724221840178,-151.0,0.00016483,2]
[335425398,1724221840188,-151.0,0.00016483,2]
[335425399,1724221840198,-151.0,0.00016483,2]
[335425400,1724221840207,-151.0,0.00016483,2]
[335425401,1724221840216,-1051.226735,0.00016483,2]
[335425402,1724221840226,-647.283939,0.00016483,2]
[335425403,1724221840235,-647.283939,0.00016483,2]
[335425404,1724221840247,-151.0,0.00016483,2]
[335425405,1724221840258,-151.0,0.00016483,2]
[335425406,1724221840267,-152.716754,0.00016483,2]
[335425407,1724221840277,-151.0,0.00016483,2]
[335425408,1724221840286,-520.501741,0.00016483,2]
[335425409,1724221840295,-151.0,0.00016483,2]
[335425410,1724221840304,-520.501741,0.00016483,2]
[335425411,1724221840314,-261.07152,0.00016483,2]
[335425412,1724221840324,-151.0,0.00016483,2]
[335425413,1724221840334,-261.07152,0.00016483,2]
[335425414,1724221840344,-151.0,0.00016483,2]
[335425415,1724221840353,-2139.595495,0.00016483,2]
[335425416,1724221840363,-2139.595495,0.00016483,2]
[335425417,1724221840373,-151.0,0.00016483,2]
[335425418,1724221840382,-151.0,0.00016483,2]
[335425419,1724221840393,-151.0,0.00016483,2]
[335425420,1724221840404,-151.0,0.00016483,2]
[335425421,1724221840414,-363.668635,0.00016483,2]
[335425422,1724221840423,-363.668635,0.00016483,2]
[335425423,1724221840433,-363.668635,0.00016483,2]
[335425424,1724221840443,-363.668635,0.00016483,2]
[335425425,1724221840452,-1347.23,0.00016483,5]
[335425426,1724221840461,-500.0,0.00016483,5]
[335425427,1724221840471,-1779.64,0.00016483,5]
[335425428,1724221840480,-1442.4,0.00016483,5]
[335425429,1724221840490,-840.87,0.00016483,5]
[335425430,1724221840499,-713.76,0.00016483,5]
[335425431,1724221840511,-1186.56,0.00016483,5]
[335425432,1724221840521,-2952.613592,0.00016483,2]
[335425433,1724221840530,-2952.613592,0.00016483,2]
[335425434,1724221840540,-500.0,0.00016483,5]
[335425435,1724221840548,-500.0,0.00016483,5]
[335425436,1724221840558,-238.471029,0.00016483,2]
[335425437,1724221840568,-2268.589239,0.00016483,2]
[335425438,1724221840578,-835.96,0.00016483,5]
[335425439,1724221840587,-238.471029,0.00016483,2]
[335425440,1724221840596,-500.0,0.00016483,5]
[335425441,1724221840606,-2268.589239,0.00016483,2]
[335425442,1724221840616,-1064.01,0.00016483,5]
[335425443,1724221840625,-10000.0,0.00016483,2]
[335425444,1724221840635,-151.0,0.00016483,2]
[335425445,1724221840644,-1301.52,0.00016483,5]
[335425446,1724221840654,-10000.0,0.00016483,2]
[335425447,1724221840663,-10000.0,0.00016483,2]
[335425448,1724221840672,-151.0,0.00016483,2]
[335425449,1724221840682,-500.0,0.00016483,5]
[335425450,1724221840691,-1638.12,0.00016483,5]
[335425451,1724221840700,-2912.65,0.00016483,5]
[335425452,1724221840709,-196.381651,0.00016483,2]
[335425453,1724221840719,-151.0,0.00016483,2]
[335425454,1724221840728,-196.381651,0.00016483,2]
[335425455,1724221840737,-1097.05,0.00016483,5]
[335425456,1724221840748,-1155.55,0.00016483,5]
[335425457,1724221840758,-500.0,0.00016483,5]
[335425458,1724221840767,-151.822451,0.00016483,2]
[335425459,1724221840776,-1142.86,0.00016483,5]
[335425460,1724221840786,-1273.13,0.00016483,5]
[335425461,1724221840795,-1533.86,0.00016483,5]
[335425462,1724221840804,-500.0,0.00016483,5]
[335425463,1724221840814,-2008.56,0.00016483,5]
[335425464,1724221840823,-915.82,0.00016483,5]
[335425465,1724221840832,-780.24,0.00016483,5]
[335425466,1724221840841,-764.32367192,0.00016484,2]
[335425467,1724221840850,-151.0,0.00016487,2]
[335425468,1724221840860,-151.0,0.00016487,2]
[335425469,1724221840872,-520.501741,0.00016487,2]
[335425470,1724221840881,-151.0,0.00016487,2]
[335425471,1724221840891,-520.501741,0.00016487,2]
[335425472,1724221840900,-6423.44,0.00016487,5]
[335425473,1724221840910,-6423.44,0.00016487,5]
[335425474,1724221840919,-261.07152,0.00016487,2]
[335425475,1724221840929,-151.0,0.00016487,2]
[335425476,1724221840938,-261.07152,0.00016487,2]
[335425477,1724221840948,-2246.64,0.00016487,5]
[335425478,1724221840957,-2246.64,0.00016487,5]
[335425479,1724221840966,-268.851684,0.00016487,2]
[335425480,1724221840976,-6503.45,0.00016487,5]
[335425481,1724221840985,-6503.45,0.00016487,5]
[335425482,1724221840995,-2139.595495,0.00016487,2]
[335425483,1724221841005,-2139.595495,0.00016487,2]
[335425484,1724221841014,-1561.68,0.00016487,5]
[335425485,1724221841024,-1561.68,0.00016487,5]
[335425486,1724221841033,-3125.69,0.00016487,5]
[335425487,1724221841043,-3125.69,0.00016487,5]
[335425488,1724221841053,-151.0,0.00016487,2]
[335425489,1724221841064,-151.0,0.00016487,2]
[335425490,1724221841073,-363.668635,0.00016487,2]
[335425491,1724221841083,-363.668635,0.00016487,2]
[335425492,1724221841092,-500.0,0.00016487,5]
[335425493,1724221841101,-500.0,0.00016487,5]
[335425494,1724221841111,-1033.63,0.00016487,5]